bitfinex/quotes_SOLUSD_20260208
["timestamp","ask_amount","ask_price","bid_price","bid_amount"]
[1770583638086,1.95326974,87.34,87.33,0.1]
[1770583638285,1.95326974,87.34,87.3,32.6551858]
[1770583638286,1.95326974,87.337,87.306,2.07712996]
[1770583638494,1.95326974,87.335,87.306,2.07712996]
[1770583638696,1.95326974,87.329,87.295,11.45534448]
[1770583639187,7.27306756,87.334,87.311,2.07712996]
[1770583639401,7.27306756,87.334,87.303,2.07712996]
[1770583639402,1.95326974,87.333,87.303,2.07712996]
[1770583639586,30.0,87.328,87.303,2.07712996]
[1770583641187,9.20237544,87.329,87.303,2.07712996]
[1770583641393,1.95326974,87.328,87.305,2.07712996]
[1770583643703,7.2491057,87.329,87.311,2.07712996]
[1770583643910,2.68816569,87.329,87.312,0.18576267]
[1770583644104,4.01832227,87.4,87.32,4.01832227]
[1770583644105,2.20523059,87.357,87.32,4.01832227]
[1770583644609,2.20523059,87.339,87.301,11.45458213]
[1770583644993,2.20523059,87.329,87.295,11.45528166]
[1770583645402,2.20523059,87.329,87.294,11.45541701]
[1770583645911,2.20523059,87.329,87.3,4.01832227]
[1770583646493,11.45108098,87.328,87.3,4.01832227]
[1770583646688,2.20523059,87.327,87.31,4.01832227]
[1770583646895,2.9262306,87.335,87.311,0.05142049]
[1770583647112,0.72100001,87.335,87.32,10.80401377]
[1770583647290,28.61591941,87.364,87.32,10.80401377]
[1770583647291,2.23094083,87.366,87.32,10.80401377]
[1770583647617,10.80401377,87.38,87.301,5.36086188]
[1770583647618,2.23094083,87.364,87.33,10.80401377]
[1770583647807,2.23094083,87.349,87.32,10.80401377]
[1770583648312,2.23094083,87.347,87.32,10.80401377]
[1770583648512,2.23094083,87.346,87.32,10.80401377]
[1770583648709,2.23094083,87.345,87.32,10.80401377]
[1770583649017,7.17554695,87.346,87.331,11.45068761]
[1770583649607,7.14224345,87.346,87.34,10.80401377]
[1770583650490,7.14224345,87.346,87.336,11.44993307]
[1770583651094,2.26572576,87.366,87.341,11.44937658]
[1770583651296,2.26572576,87.366,87.341,10.94937658]
[1770583652499,7.17545009,87.373,87.351,11.44806584]
[1770583653424,10.80401377,87.37,87.297,0.03552247]
[1770583653596,2.26572576,87.349,87.312,11.48870187]
[1770583654420,2.26572576,87.349,87.312,11.4531794]
[1770583654717,2.26572576,87.347,87.312,11.4531794]
[1770583658229,11.44872117,87.346,87.312,11.4531794]
[1770583658422,2.26572576,87.329,87.297,11.45504234]
[1770583659422,2.26572576,87.329,87.29,22.25996931]
[1770583659724,2.26572576,87.329,87.295,11.4553447]
[1770583660124,2.26572576,87.327,87.295,11.4553447]
[1770583663431,2.26572576,87.325,87.295,11.4553447]
[1770583663828,2.26572576,87.325,87.296,0.21558275]
[1770583665132,2.26572576,87.325,87.297,11.45514737]
[1770583665325,2.26572576,87.325,87.292,11.45571699]
[1770583665725,2.26839718,87.323,87.296,11.45520232]
[1770583666934,2.26839718,87.323,87.292,0.27544719]
[1770583668442,2.26839718,87.332,87.301,0.28998603]
[1770583668614,2.26839718,87.329,87.294,0.28998603]
[1770583669147,2.26839718,87.327,87.294,0.28998603]
[1770583669442,2.26839718,87.327,87.295,11.45540981]
[1770583669622,2.26839718,87.327,87.3,4.33993422]
[1770583670432,2.26839718,87.327,87.301,0.31856465]
[1770583670739,7.16713355,87.333,87.301,0.31856465]
[1770583671033,9.43553073,87.333,87.311,0.33260825]
[1770583671213,2.26839718,87.332,87.302,0.33260825]
[1770583672427,2.26839718,87.332,87.31,4.03557634]
[1770583674033,2.26839718,87.332,87.308,11.45361843]
[1770583674512,2.26839718,87.332,87.301,11.45462251]
[1770583674715,2.26839718,87.332,87.301,11.84181051]
[1770583675038,2.26839718,87.332,87.31,4.03435014]
[1770583679041,2.26839718,87.332,87.307,11.45374662]
[1770583679338,2.26839718,87.332,87.261,0.43930303]
[1770583679339,2.26839718,87.316,87.261,0.43930303]
[1770583679520,2.26839718,87.299,87.271,0.43930303]
[1770583679722,2.26839718,87.321,87.29,4.48630997]
[1770583680626,2.26839718,87.321,87.28,4.48630997]
[1770583680944,2.26839718,87.319,87.286,11.45654233]
[1770583681326,2.26839718,87.309,87.274,11.45811351]
[1770583681650,2.26839718,87.299,87.26,4.03435014]
[1770583682027,2.26839718,87.299,87.262,11.45973974]
[1770583682223,2.26839718,87.299,87.229,5.36086188]
[1770583682224,2.26839718,87.314,87.211,0.47683896]
[1770583682458,2.26839718,87.269,87.231,0.47683896]
[1770583682624,2.26839718,87.269,87.25,4.03435014]
[1770583683348,2.26839718,87.289,87.261,0.48906462]
[1770583683524,2.26839718,87.289,87.27,4.03435014]
[1770583683846,2.26839718,87.289,87.26,4.03435014]
[1770583684227,2.26839718,87.289,87.25,4.03435014]
[1770583684435,2.26839718,87.285,87.25,4.03435014]
[1770583684646,2.26839718,87.285,87.27,4.03435014]
[1770583684826,2.26839718,87.285,87.26,4.54744642]
[1770583685158,2.26839718,87.285,87.249,0.51309628]
[1770583685453,2.26839718,87.285,87.26,4.03435014]
[1770583686048,2.26839718,87.285,87.26,4.55925563]
[1770583686758,2.26839718,87.285,87.26,4.03435014]
[1770583687227,2.26839718,87.285,87.245,40.11691213]
[1770583687228,2.26839718,87.283,87.25,4.03435014]
[1770583688061,2.26839718,87.281,87.25,16.04375636]
[1770583688250,2.26839718,87.281,87.26,4.03435014]
[1770583688550,2.26839718,87.288,87.261,0.54811855]
[1770583690260,2.26839718,87.288,87.262,11.45974192]
[1770583690446,2.26839718,87.295,87.27,4.03435014]
[1770583690746,5.979,87.3,87.281,0.57080141]
[1770583692644,2.26839718,87.31,87.282,11.45711601]
[1770583693431,2.26839718,87.31,87.283,0.60385803]
[1770583693633,9.4342119,87.332,87.3,4.03435014]
[1770583693839,9.4342119,87.332,87.31,4.03435014]
[1770583694048,2.26839718,87.319,87.282,11.45711601]
[1770583694345,2.26839718,87.309,87.272,11.45832678]
[1770583694550,2.26839718,87.307,87.272,11.45832678]
[1770583695652,2.34069634,87.299,87.266,11.4591088]
[1770583696550,2.34069634,87.297,87.261,11.45987325]
[1770583696757,2.34069634,87.297,87.27,4.03435014]
[1770583696941,2.34069634,87.297,87.271,0.66663153]
[1770583697140,2.34069634,87.297,87.216,57.32890634]
[1770583697141,2.34069634,87.296,87.216,57.32890634]
[1770583697331,2.34069634,87.269,87.232,12.13021969]
[1770583697531,2.34069634,87.269,87.243,11.46213178]
[1770583697728,2.34069634,87.269,87.25,4.03435014]
[1770583697942,2.34069634,87.266,87.242,11.46234167]
[1770583698345,30.0,87.267,87.25,4.03435014]
[1770583698935,30.0,87.265,87.25,10.8189057]
[1770583699146,2.34069634,87.275,87.247,11.46158212]
[1770583699465,2.34069634,87.275,87.251,11.46118669]
[1770583700136,2.34069634,87.275,87.241,0.68660755]
[1770583700337,2.34069634,87.275,87.232,0.69642382]
[1770583700655,2.34069634,87.273,87.242,11.46232868]
[1770583701248,5.36086188,87.341,87.199,0.70612733]
[1770583701249,2.34069634,87.259,87.199,0.70612733]
[1770583701437,2.34069634,87.259,87.194,57.34288476]
[1770583701438,2.34069634,87.259,87.218,11.46546024]
[1770583701832,2.34069634,87.259,87.23,10.8189057]
[1770583702036,2.34069634,87.259,87.23,22.28281303]
[1770583702230,2.34069634,87.259,87.21,0.1]
[1770583702449,2.34069634,87.239,87.21,0.1]
[1770583702641,2.34069634,87.239,87.211,11.46644345]
[1770583702955,2.34069634,87.239,87.21,0.1]
[1770583703148,2.34069634,87.229,87.21,0.1]
[1770583703454,2.34069634,87.229,87.187,11.46959982]
[1770583703643,2.34069634,87.219,87.187,11.46959982]
[1770583704244,11.46289461,87.238,87.186,11.46964043]
[1770583704245,2.34069634,87.209,87.186,11.46964043]
[1770583704444,2.34069634,87.217,87.19,10.8189057]
[1770583704638,2.34069634,87.217,87.186,11.46964043]
[1770583704838,2.34069634,87.217,87.148,5.36086188]
[1770583705040,2.34069634,87.197,87.148,0.84383956]
[1770583705240,2.34069634,87.189,87.161,0.84383956]
[1770583705452,30.0,87.194,87.17,10.8189057]
[1770583705755,30.0,87.194,87.171,1.11282216]
[1770583706276,30.0,87.194,87.148,1.12198106]
[1770583706554,10.8189057,87.19,87.15,10.8189057]
[1770583706752,30.0,87.194,87.16,10.8189057]
[1770583707143,10.8189057,87.2,87.161,11.47302119]
[1770583707344,10.8189057,87.2,87.162,1.13103476]
[1770583707345,2.34069634,87.199,87.162,1.13103476]
[1770583707655,7.18689404,87.212,87.18,10.8189057]
[1770583707863,2.34069634,87.207,87.18,10.8189057]
[1770583708359,2.34069634,87.207,87.19,10.8189057]
[1770583708546,2.34069634,87.207,87.18,10.8189057]
[1770583709059,2.34069634,87.224,87.192,1.14896966]
[1770583709249,2.34069634,87.232,87.201,1.14896966]
[1770583709761,2.34069634,87.232,87.21,10.8189057]
[1770583709960,2.34069634,87.24,87.22,10.8189057]
[1770583710346,7.17909362,87.253,87.23,10.8189057]
[1770583710550,2.34069634,87.252,87.23,10.8189057]
[1770583710744,2.34069634,87.252,87.191,40.14175774]
[1770583710745,2.34069634,87.252,87.22,10.8189057]
[1770583711163,2.34069634,87.252,87.221,11.46512881]
[1770583712670,1.84069634,87.229,87.17,1.17894648]
[1770583712855,5.13032502,87.25,87.192,11.46890752]
[1770583713059,5.13032502,87.25,87.18,39.49503101]
[1770583713060,10.8189057,87.22,87.179,11.47057653]
[1770583713364,10.8189057,87.22,87.183,11.47002901]
[1770583713665,10.8189057,87.23,87.19,10.8189057]
[1770583713847,10.8189057,87.23,87.183,11.47007908]
[1770583714048,10.8189057,87.22,87.17,10.8189057]
[1770583714247,10.8189057,87.22,87.174,11.47124817]
[1770583714466,10.8189057,87.22,87.18,10.8189057]
[1770583714662,2.34069634,87.217,87.181,11.47038919]
[1770583715061,2.34069634,87.217,87.18,10.8189057]
[1770583715253,2.34069634,87.209,87.18,22.28936286]
[1770583717458,2.34069634,87.208,87.18,22.28936286]
[1770583719954,2.34069634,87.208,87.19,10.8189057]
[1770583720159,2.34069634,87.208,87.18,22.28936286]
[1770583720774,2.34069634,87.217,87.19,10.8189057]
[1770583720971,2.34069634,87.217,87.2,10.8189057]
[1770583721476,2.34069634,87.217,87.19,10.8189057]
[1770583721978,2.34069634,87.238,87.21,10.8189057]
[1770583722191,2.34069634,87.238,87.2,12.56440866]
[1770583722552,2.34069634,87.238,87.21,10.3189057]
[1770583722974,2.34069634,87.238,87.2,12.56440866]
[1770583723973,2.34069634,87.236,87.21,10.8189057]
[1770583726154,2.48465003,87.247,87.221,1.78464527]
[1770583726359,7.17896383,87.251,87.23,10.8189057]
[1770583726567,2.48465003,87.25,87.23,10.8189057]
[1770583726754,2.48465003,87.25,87.221,1.78464527]
[1770583727674,2.48465003,87.249,87.211,11.46644345]
[1770583728181,2.48465003,87.249,87.22,10.8189057]
[1770583729079,2.48465003,87.249,87.188,57.34702152]
[1770583729080,7.17896383,87.251,87.23,10.8189057]
[1770583729460,7.17896383,87.251,87.24,10.8189057]
[1770583729656,2.73476851,87.273,87.24,10.8189057]
[1770583729860,2.73476851,87.273,87.25,10.8189057]
[1770583730577,2.73476851,87.273,87.24,10.8189057]
[1770583730776,2.73476851,87.273,87.25,10.8189057]
[1770583731082,2.73476851,87.273,87.24,10.8189057]
[1770583731883,2.73476851,87.279,87.25,10.8189057]
[1770583733282,2.73476851,87.279,87.251,11.46118669]
[1770583733978,2.73476851,87.259,87.226,11.46443796]
[1770583735374,2.73476851,87.257,87.221,11.46512881]
[1770583736479,2.73476851,87.255,87.23,10.8189057]
[1770583736991,2.73476851,87.255,87.23,10.82474241]
[1770583737987,2.73476851,87.255,87.22,10.82474241]
[1770583738682,2.73476851,87.255,87.23,10.82474241]
[1770583740291,2.73476851,87.255,87.221,11.46512881]
[1770583740477,2.73476851,87.253,87.221,11.46512881]
[1770583740796,2.73476851,87.253,87.23,10.82474241]
[1770583741178,2.73476851,87.253,87.221,11.46512881]
[1770583741974,7.16761057,87.269,87.221,11.46512881]
[1770583741975,2.73476851,87.268,87.231,0.06258306]
[1770583742175,2.73476851,87.268,87.24,10.82474241]
[1770583742375,2.73476851,87.268,87.231,0.06258306]
[1770583742675,2.73476851,87.267,87.231,0.06258306]
[1770583743082,11.45919293,87.267,87.231,11.52639752]
[1770583743284,2.73476851,87.266,87.231,11.52639752]
[1770583743874,2.73476851,87.259,87.22,10.82474241]
[1770583744074,2.73476851,87.259,87.225,11.46450268]
[1770583744270,10.82474241,87.25,87.21,10.82474241]
[1770583744489,2.73476851,87.249,87.21,10.82474241]
[1770583744686,2.73476851,87.249,87.203,0.06892758]
[1770583744687,2.73476851,87.249,87.22,10.82474241]
[1770583744888,2.73476851,87.249,87.205,11.46722018]
[1770583745085,2.73476851,87.247,87.205,11.46722018]
[1770583745597,2.73476851,87.239,87.205,11.46722018]
[1770583746094,2.73476851,87.248,87.22,4.04300744]
[1770583747002,2.73476851,87.248,87.22,10.82657819]
[1770583747702,2.73476851,87.248,87.221,11.46512881]
[1770583747999,2.73476851,87.255,87.23,10.82657819]
[1770583748704,2.73476851,87.255,87.221,11.46512881]
[1770583748895,2.73476851,87.255,87.23,10.82657819]
[1770583749381,2.73476851,87.255,87.221,40.21211297]
[1770583749581,2.73476851,87.255,87.221,40.12795083]
[1770583751399,2.73476851,87.255,87.23,10.82657819]
[1770583752200,0.72100001,87.261,87.24,10.82657819]
[1770583755296,0.72100001,87.261,87.242,0.10406487]
[1770583755501,45.32,87.286,87.241,11.46250042]
[1770583755502,2.73476851,87.299,87.251,0.10406487]
[1770583755701,2.73476851,87.299,87.26,10.82657819]
[1770583756199,2.73476851,87.299,87.27,10.82657819]
[1770583757195,2.73476851,87.297,87.27,22.28515232]
[1770583759797,7.17477253,87.316,87.254,28.65186717]
[1770583759798,2.73476851,87.289,87.254,11.46067354]
[1770583760004,11.45527859,87.296,87.244,11.46203886]
[1770583760005,2.73476851,87.279,87.244,11.46203886]
[1770583760200,2.73476851,87.279,87.208,10.4911869]
[1770583760201,2.73476851,87.259,87.231,11.46381446]
[1770583761092,2.73476851,87.259,87.22,10.82657819]
[1770583761093,2.73476851,87.259,87.221,11.46512881]
[1770583762283,2.73476851,87.257,87.221,11.46512881]
[1770583763710,2.73476851,87.257,87.23,22.29050842]
[1770583766216,2.73476851,87.257,87.23,10.82657819]
[1770583767511,2.73476851,87.257,87.231,11.46381446]
[1770583771220,2.73476851,87.257,87.232,0.14619929]
[1770583772009,2.73476851,87.257,87.231,11.46381446]
[1770583772010,2.73476851,87.273,87.25,4.0410266]
[1770583775017,2.73476851,87.272,87.25,4.0410266]
[1770583776019,2.73476851,87.259,87.21,11.46655524]
[1770583776222,57.29280058,87.271,87.201,11.46775163]
[1770583776223,2.73476851,87.249,87.201,11.46775163]
[1770583776522,2.73476851,87.229,87.19,4.0410266]
[1770583776701,2.73476851,87.219,87.171,0.15920192]
[1770583776905,2.73476851,87.209,87.171,11.47170503]
[1770583777317,2.73476851,87.209,87.17,4.0410266]
[1770583777525,2.73476851,87.207,87.17,15.51284032]
[1770583777711,2.73476851,87.207,87.17,4.0410266]
[1770583778308,2.73476851,87.199,87.16,4.0410266]
[1770583778499,2.73476851,87.179,87.139,11.47588336]
[1770583778700,2.73476851,87.179,87.14,4.1410266]
[1770583779027,2.73476851,87.179,87.14,10.94645649]
[1770583779318,2.73476851,87.179,87.143,11.47528748]
[1770583779524,2.73476851,87.186,87.16,10.84645649]
[1770583779703,2.73476851,87.199,87.16,11.00979616]
[1770583780025,2.73476851,87.199,87.151,11.47433764]
[1770583780216,2.73476851,87.189,87.15,10.84645649]
[1770583780723,2.73476851,87.189,87.15,22.32091803]
[1770583781102,2.73476851,87.189,87.15,10.84645649]
[1770583781303,2.73476851,87.169,87.14,0.1]
[1770583781902,2.73476851,87.169,87.14,10.94645649]
[1770583782109,2.73476851,87.169,87.14,0.1]
[1770583782528,2.73476851,87.167,87.14,0.1]
[1770583782734,2.73476851,87.167,87.14,10.94645649]
[1770583782912,2.73476851,87.167,87.14,0.1]
[1770583783115,2.73476851,87.167,87.13,0.1]
[1770583783116,2.68476851,87.201,87.131,13.6171093]
[1770583783315,2.68476851,87.199,87.16,10.84645649]
[1770583783526,2.68476851,87.197,87.17,10.84645649]
[1770583784027,2.68476851,87.197,87.161,11.47302119]
[1770583784230,2.68476851,87.197,87.17,10.84645649]
[1770583784426,2.68476851,87.197,87.18,10.84645649]
[1770583784630,2.68476851,87.197,87.161,11.47302119]
[1770583785430,2.68476851,87.197,87.17,10.84645649]
[1770583785936,2.76548173,87.189,87.131,2.14018632]
[1770583786130,2.76548173,87.179,87.142,11.4754744]
[1770583786631,2.76548173,87.179,87.135,11.47635286]
[1770583786823,2.76548173,87.169,87.135,11.47635286]
[1770583787715,2.76548173,87.167,87.135,11.47635286]
[1770583788637,2.76548173,87.167,87.131,2.14018632]
[1770583788935,2.76548173,87.167,87.14,10.84645649]
[1770583790727,28.67530649,87.184,87.131,2.14018632]
[1770583790728,2.76548173,87.184,87.15,10.84645649]
[1770583792434,2.76548173,87.182,87.146,11.47497423]
[1770583793137,2.76548173,87.182,87.129,0.28892566]
[1770583793138,10.84645649,87.16,87.086,44.73399404]
[1770583793324,2.76548173,87.149,87.107,2.53063531]
[1770583793522,2.76548173,87.149,87.111,11.47960647]
[1770583793935,2.76548173,87.139,87.111,11.47960647]
[1770583794241,2.76548173,87.127,87.082,28.70833144]
[1770583794620,2.76548173,87.119,87.082,28.70833144]
[1770583795429,2.76548173,87.119,87.082,40.19176085]
[1770583796325,2.76548173,87.117,87.082,11.48342941]
[1770583796736,2.76548173,87.13,87.091,2.53655567]
[1770583796938,2.76548173,87.13,87.09,10.84645649]
[1770583796939,2.76548173,87.129,87.1,10.85779634]
[1770583798327,2.76548173,87.129,87.101,11.48092444]
[1770583800348,2.76548173,87.129,87.101,14.02779475]
[1770583800526,2.76548173,87.129,87.102,2.54687031]
[1770583802748,2.76548173,87.146,87.12,10.85779634]
[1770583802946,2.76548173,87.146,87.111,2.55554437]
[1770583804347,0.73699998,87.151,87.121,2.56402031]
[1770583804547,0.73699998,87.151,87.13,10.85779634]
[1770583804739,2.76548173,87.17,87.14,10.85779634]
[1770583805137,2.65071173,87.17,87.14,10.85779634]
[1770583805737,2.65071173,87.17,87.15,10.85779634]
[1770583807253,2.65071173,87.17,87.144,11.47524978]
[1770583807638,2.76548173,87.179,87.15,10.85779634]
[1770583807834,2.76548173,87.179,87.151,11.47433764]
[1770583808439,2.76548173,87.179,87.151,14.11415732]
[1770583809452,2.76548173,87.192,87.16,10.85779634]
[1770583809651,2.76548173,87.192,87.17,10.85779634]
[1770583814860,2.76548173,87.2,87.172,2.63981968]
[1770583815275,2.76548173,87.2,87.171,11.47170503]
[1770583816476,2.7741596,87.198,87.16,11.47307299]
[1770583816665,2.7741596,87.189,87.15,10.85779634]
[1770583816868,2.7741596,87.189,87.153,11.47398762]
[1770583817166,2.7741596,87.179,87.148,11.47469994]
[1770583817884,2.7741596,87.179,87.15,10.85779634]
[1770583818079,2.7741596,87.179,87.155,11.47370764]
[1770583818386,2.7741596,87.179,87.15,22.33217923]
[1770583818680,2.7741596,87.179,87.154,11.47388089]
[1770583821466,2.7741596,87.177,87.15,10.85779634]
[1770583821667,2.7741596,87.177,87.145,11.47509387]
[1770583822688,2.7741596,87.175,87.14,22.33352107]
[1770583822982,2.7741596,87.175,87.14,15.52522966]
[1770583823787,2.7741596,87.173,87.14,15.52522966]
[1770583824183,2.7741596,87.173,87.141,2.73940945]
[1770583825562,2.7741596,87.173,87.142,11.47552271]
[1770583825979,2.7741596,87.173,87.15,4.04950493]
[1770583827386,2.7741596,87.173,87.142,11.47552271]
[1770583827681,2.7741596,87.171,87.142,11.47552271]
[1770583827874,2.7741596,87.171,87.15,4.04950493]
[1770583828384,2.7741596,87.171,87.143,2.73940945]
[1770583828566,2.7741596,87.171,87.15,4.04950493]
[1770583829787,2.7741596,87.171,87.143,2.73940945]
[1770583829990,2.7741596,87.171,87.144,11.47525934]
[1770583830872,2.7741596,87.171,87.144,14.21466879]
[1770583831293,2.7741596,87.17,87.144,11.47525934]
[1770583831889,2.7741596,87.176,87.15,6.78891438]
[1770583832076,2.7741596,87.176,87.15,4.04950493]
[1770583832974,2.7741596,87.176,87.13,4.04950493]
[1770583833186,2.7741596,87.176,87.136,11.47623415]
[1770583833500,2.7741596,87.149,87.11,4.04950493]
[1770583833996,2.7741596,87.147,87.111,2.73940945]
[1770583835077,2.7741596,87.147,87.11,10.85325578]
[1770583835078,2.7741596,87.145,87.113,2.73940945]
[1770583836175,2.7741596,87.145,87.106,11.48018523]
[1770583836378,2.7741596,87.145,87.083,57.41636546]
[1770583836379,2.7741596,87.129,87.094,2.73940945]
[1770583836579,2.7741596,87.129,87.096,11.48151048]
[1770583836879,2.7741596,87.129,87.097,2.73940945]
[1770583837095,2.7741596,87.127,87.096,11.48151048]
[1770583837795,2.7741596,87.127,87.096,14.22091993]
[1770583838595,2.7741596,87.127,87.097,2.73940945]
[1770583839099,2.7741596,87.127,87.101,2.73940945]
[1770583840279,2.7741596,87.127,87.1,10.85325578]
[1770583840280,11.47763009,87.126,87.094,2.73940945]
[1770583840581,2.7741596,87.125,87.094,2.73940945]
[1770583840893,2.7741596,87.16,87.111,2.73940945]
[1770583841076,2.7741596,87.16,87.121,2.73940945]
[1770583842004,2.7741596,87.158,87.123,2.73940945]
[1770583842803,2.7741596,87.158,87.122,11.47815706]
[1770583843005,2.7741596,87.158,87.123,2.73940945]
[1770583843200,11.47328445,87.159,87.11,10.85325578]
[1770583843201,2.7741596,87.149,87.11,10.85325578]
[1770583843503,2.7741596,87.139,87.112,11.47943998]
[1770583843698,2.7741596,87.129,87.097,11.48140155]
[1770583843906,2.7741596,87.129,87.097,14.220811]
[1770583844704,2.7741596,87.127,87.097,14.220811]
[1770583849610,2.7741596,87.127,87.101,2.88324806]
[1770583851408,2.76335729,87.125,87.101,2.88324806]
[1770583852625,2.76335729,87.125,87.095,2.88324806]
[1770583852810,2.76335729,87.125,87.098,11.4812063]
[1770583853497,2.76335729,87.125,87.098,14.36445436]
[1770583853810,2.76335729,87.125,87.099,2.88324806]
[1770583854403,2.76335729,87.125,87.101,2.88324806]
[1770583857912,2.76335729,87.136,87.103,2.88324806]
[1770583858112,2.76335729,87.136,87.111,2.88324806]
[1770583860218,2.76335729,87.134,87.111,2.88324806]
[1770583860420,2.76335729,87.134,87.112,2.88324806]
[1770583860715,11.47559267,87.142,87.112,2.88324806]
[1770583860907,2.76335729,87.141,87.112,2.88324806]
[1770583861695,2.76335729,87.139,87.097,2.88324806]
[1770583861918,2.76335729,87.139,87.101,2.88324806]
[1770583862120,2.76335729,87.137,87.104,2.88324806]
[1770583863721,2.76335729,87.137,87.111,2.88324806]
[1770583866430,2.76335729,87.142,87.111,2.88324806]
[1770583866611,2.76335729,87.148,87.113,2.88324806]
[1770583867220,2.76335729,87.139,87.107,11.48005386]
[1770583867405,2.76335729,87.139,87.108,2.88324806]
[1770583867705,2.76335729,87.139,87.111,2.88324806]
[1770583868828,2.76335729,87.137,87.111,2.88324806]
[1770583871123,2.76335729,87.156,87.113,2.88324806]
[1770583871323,2.76335729,87.159,87.12,4.05227427]
[1770583871523,2.76335729,87.159,87.121,2.88324806]
[1770583872419,2.76335729,87.159,87.113,2.88324806]
[1770583872728,2.76335729,87.149,87.113,2.88324806]
[1770583873431,2.76335729,87.155,87.131,2.88324806]
[1770583874333,2.76335729,87.153,87.131,2.88324806]
[1770583876820,2.92710742,87.16,87.133,2.87833371]
[1770583877216,2.92710742,87.16,87.141,2.87833371]
[1770583877413,7.16931705,87.169,87.151,2.87833371]
[1770583878827,28.67291895,87.191,87.12,4.05227427]
[1770583878828,14.39684616,87.186,87.161,2.87833371]
[1770583879031,2.92710742,87.186,87.161,2.87833371]
[1770583879613,2.92710742,87.196,87.17,4.05227427]
[1770583880832,2.92710742,87.194,87.17,4.05227427]
[1770583881418,2.92710742,87.194,87.171,2.87833371]
[1770583881832,2.92710742,87.194,87.164,2.87833371]
[1770583882038,2.92710742,87.194,87.165,2.87833371]
[1770583882336,2.92710742,87.194,87.17,4.05227427]
[1770583884440,2.92710742,87.189,87.125,2.87833371]
[1770583884629,11.46881056,87.193,87.161,2.87833371]
[1770583884820,2.92710742,87.192,87.161,2.87833371]
[1770583886445,2.92710742,87.192,87.163,2.87833371]
[1770583888033,2.92710742,87.192,87.171,2.87833371]
[1770583888620,2.92710742,87.203,87.171,2.87833371]
[1770583889332,2.92710742,87.203,87.18,4.05227427]
[1770583892142,2.92710742,87.201,87.178,2.87833371]
[1770583892530,2.92710742,87.201,87.172,2.87833371]
[1770583893345,2.92710742,87.201,87.162,11.47286888]
[1770583893545,2.92710742,87.199,87.162,11.47286888]
[1770583893746,2.92710742,87.199,87.163,2.87833371]
[1770583894249,11.46815293,87.198,87.163,2.87833371]
[1770583894450,2.92710742,87.197,87.162,11.47286888]
[1770583894752,2.92710742,87.179,87.151,2.87833371]
[1770583895351,2.92710742,87.179,87.141,2.87833371]
[1770583895555,2.92710742,87.179,87.152,2.87833371]
[1770583895749,2.92710742,87.179,87.16,6.93060798]
[1770583896055,2.92710742,87.185,87.161,2.87833371]
[1770583896556,2.92710742,87.183,87.161,2.87833371]
[1770583899947,4.05227427,87.2,87.114,45.15369933]
[1770583899948,2.92710742,87.204,87.171,2.87833371]
[1770583900149,2.92710742,87.204,87.18,4.05227427]
[1770583900937,2.92710742,87.204,87.17,6.93060798]
[1770583904062,2.92710742,87.202,87.171,2.87833371]
[1770583911470,2.85449412,87.2,87.171,2.87833371]
[1770583912468,2.85449412,87.208,87.181,3.05532012]
[1770583913768,2.85449412,87.208,87.18,4.05227427]
[1770583916269,7.16322269,87.216,87.16,4.05227427]
[1770583916270,2.85449412,87.199,87.161,3.05532012]
[1770583916575,2.85449412,87.199,87.17,4.05227427]
[1770583917979,2.85449412,87.197,87.17,7.10759439]
[1770583918875,2.85449412,87.197,87.17,7.10180645]
[1770583920581,2.85449412,87.195,87.171,3.05532012]
[1770583921075,2.85449412,87.195,87.18,4.04648633]
[1770583921371,7.16322269,87.216,87.181,3.05532012]
[1770583921372,2.85449412,87.201,87.181,3.05532012]
[1770583921556,2.85449412,87.214,87.191,3.05532012]
[1770583921758,2.85449412,87.214,87.19,4.04648633]
[1770583922678,2.85449412,87.212,87.19,4.04648633]
[1770583922979,2.85449412,87.209,87.174,3.05532012]
[1770583924266,2.85449412,87.207,87.17,4.04648633]
[1770583926356,4.04648633,87.21,87.17,4.04648633]
[1770583926357,2.85449412,87.205,87.17,4.04648633]
[1770583926562,2.85449412,87.189,87.153,11.47403563]
[1770583926776,2.85449412,87.189,87.15,4.04648633]
[1770583926976,2.85449412,87.189,87.15,7.10180645]
[1770583927179,2.85449412,87.189,87.151,3.05532012]
[1770583927777,2.85449412,87.189,87.152,11.47409359]
[1770583928086,2.85449412,87.189,87.157,3.05532012]
[1770583929878,11.46946827,87.188,87.157,3.05532012]
[1770583930080,2.85449412,87.187,87.161,3.05532012]
[1770583931573,2.35449412,87.187,87.161,3.05532012]
[1770583931975,11.46973137,87.186,87.161,3.05532012]
[1770583933682,2.85449412,87.185,87.161,3.05532012]
[1770583934080,2.85449412,87.185,87.163,3.05532012]
[1770583935689,2.98027315,87.183,87.157,2.91303204]
[1770583937890,2.98027315,87.181,87.157,2.91303204]
[1770583938602,2.98027315,87.181,87.161,2.91303204]
[1770583938776,2.98027315,87.186,87.161,2.91303204]
[1770583939976,11.46986293,87.185,87.161,2.91303204]
[1770583941196,2.98027315,87.185,87.161,2.91303204]
[1770583943597,11.46999449,87.184,87.161,2.91303204]
[1770583943797,14.45026764,87.184,87.161,2.91303204]
[1770583944496,2.98027315,87.193,87.171,2.91303204]